[Event "44th Chess Olympiad Open 2022"]
[Site "Chennai"]
[Date "2022.08.06"]
[Round "8.49"]
[White "Gole, Habtamu Ashenafi"]
[Black "Berend, Elvira"]
[Result "1/2-1/2"]
[WhiteElo "2044"]
[BlackElo "2333"]
[Annotator "RC"]
[PlyCount "92"]
[EventDate "2022.??.??"]
[TimeControl "60"]

1. Nf3 {[%emt 0:00:05]} Nf6 {[%emt 0:00:09]} 2. d4 {[%emt 0:00:12]} e6 {
[%emt 0:01:42]} 3. Bg5 {[%emt 0:00:57]} h6 {[%emt 0:00:50]} 4. Bh4 {[%emt 0:00:
00]} d6 {[%emt 0:00:17]} 5. Nbd2 {[%emt 0:00:45]} g5 {[%emt 0:00:41]} 6. Bg3 {
[%emt 0:00:02]} Nh5 {[%emt 0:00:10]} 7. e4 {[%emt 0:00:25]} Bg7 {[%emt 0:00:09]
} 8. c3 {[%emt 0:00:43]} Nd7 {[%emt 0:01:14]} 9. Qc2 {[%emt 0:03:43]} a6 {
[%emt 0:01:06]} 10. Be2 {[%emt 0:06:26]} Rb8 {[%emt 0:04:45]} 11. Nc4 {[%emt 0:
00:00]} Nb6 {[%emt 0:08:32]} 12. Nxb6 {[%emt 0:00:00]} cxb6 {[%emt 0:01:33]}
13. Nd2 {[%emt 0:00:00]} Nxg3 {[%emt 0:00:07]} 14. hxg3 {[%emt 0:00:00]} b5 {
[%emt 0:00:19]} 15. a3 {[%emt 0:03:04]} Bd7 {[%emt 0:00:45]} 16. Qb3 {[%emt 0:
00:00]} Qc7 {[%emt 0:01:10]} 17. Bh5 {[%emt 0:01:52]} Qa5 {[%emt 0:06:54]} 18.
Rd1 {[%emt 0:04:51]} Qa4 {[%emt 0:03:11]} 19. Qa2 {[%emt 0:02:30]} Qa5 {
[%emt 0:03:13]} 20. Nf1 {[%emt 0:04:30]} b4 {[%emt 0:06:10]} 21. cxb4 {[%emt 0:
00:00]} Qb6 {[%emt 0:00:10]} 22. e5 {[%emt 0:01:20]} dxe5 {[%emt 0:13:49]} 23.
dxe5 {[%emt 0:02:31]} Bxe5 {[%emt 0:00:27]} 24. Ne3 {[%emt 0:08:47]} Bd4 {
[%emt 0:09:44]} 25. O-O {[%emt 0:03:35]} Bxe3 {[%emt 0:19:19]} 26. fxe3 {
[%emt 0:00:02]} Rf8 {[%emt 0:00:14]} 27. Rd4 {[%emt 0:03:12]} Bb5 {[%emt 0:00:
00]} 28. Rfd1 {[%emt 0:03:11]} Ke7 {[%emt 0:00:19]} 29. a4 {[%emt 0:00:54]} Bc6
{[%emt 0:01:33]} 30. Qa3 {[%emt 0:01:30]} Kf6 {[%emt 0:03:44]} 31. Qc3 {
[%emt 0:05:03]} Ke7 {[%emt 0:00:15]} 32. Rd6 {[%emt 0:02:51]} Rbd8 {[%emt 0:00:
00]} 33. Qe5 {[%emt 0:01:50]} Rd7 {[%emt 0:04:08]} 34. Rxe6+ {[%emt 0:05:46]}
fxe6 {[%emt 0:01:30]} 35. Qg7+ {[%emt 0:00:10]} Kd8 {[%emt 0:00:07]} 36. Qxf8+
{[%emt 0:00:12]} Kc7 {[%emt 0:00:04]} 37. Rxd7+ {[%emt 0:00:41]} Bxd7 {[%emt 0:
00:00]} 38. Kf2 {[%emt 0:01:35]} Bxa4 {[%emt 0:02:20]} 39. Qxh6 {[%emt 0:00:41]
} Qxb4 {[%emt 0:00:18]} 40. Qxg5 {[%emt 0:00:48]} Qxb2+ {[%emt 0:00:07]} 41.
Kg1 {[%emt 0:30:15]} Bc6 {[%emt 0:30:46]} 42. Bf3 {[%emt 0:00:51]} Qa1+ {
[%emt 0:00:00]} 43. Kh2 {[%emt 0:00:00]} Qh8+ {[%emt 0:00:00]} 44. Kg1 {
[%emt 0:00:00]} Qa1+ {[%emt 0:00:00]} 45. Kh2 {[%emt 0:00:00]} Qh8+ {[%emt 0:
00:00]} 46. Kg1 {[%emt 0:00:00]} Qa1+ {[%emt 0:00:00]} 1/2-1/2

[Event "44th Chess Olympiad Open 2022"]
[Site "Chennai"]
[Date "2022.08.06"]
[Round "8.49"]
[White "Badene, Habtamu Bayu"]
[Black "Schartz, Alain"]
[Result "1-0"]
[WhiteElo "2011"]
[BlackElo "2086"]
[Annotator "NA RC"]
[PlyCount "95"]
[EventDate "2022.??.??"]
[TimeControl "60"]

1. e4 {[%emt 0:00:03]} c5 {[%emt 0:00:05]} 2. Nf3 {[%emt 0:00:04]} d6 {[%emt 0:
00:00]} 3. d4 {[%emt 0:00:11]} cxd4 {[%emt 0:00:10]} 4. Nxd4 {[%emt 0:00:03]}
Nf6 {[%emt 0:00:08]} 5. Nc3 {[%emt 0:00:11]} a6 {[%emt 0:00:10]} 6. Bg5 {
[%emt 0:00:30]} e6 {[%emt 0:00:09]} 7. g3 {[%emt 0:02:08]} h6 {[%emt 0:05:00]}
8. Be3 {[%emt 0:00:55]} e5 {[%emt 0:06:37]} 9. Nb3 {[%emt 0:01:08]} Be6 {
[%emt 0:11:10]} 10. Nd5 {[%emt 0:03:02]} Nbd7 {[%emt 0:03:39]} 11. Bg2 {
[%emt 0:02:03]} Rc8 {[%emt 0:08:38]} 12. Rc1 {[%emt 0:02:06]} b5 {[%emt 0:00:
00]} 13. O-O {[%emt 0:00:57]} Bxd5 {[%emt 0:00:35]} 14. exd5 {[%emt 0:00:27]}
Nb6 {[%emt 0:01:32]} 15. Bxb6 {[%emt 0:02:33]} Qxb6 {[%emt 0:00:09]} 16. Qd2 {
[%emt 0:00:39]} Be7 {[%emt 0:05:06]} 17. Na5 {[%emt 0:06:20]} Nd7 {[%emt 0:00:
00]} 18. Kh1 {[%emt 0:07:01]} O-O {[%emt 0:08:36]} 19. h4 {[%emt 0:01:24]} Rc7
{[%emt 0:04:44]} 20. Nc6 {[%emt 0:01:01]} Bf6 {[%emt 0:08:45]} 21. c4 {[%emt 0:
00:00]} Nb8 {[%emt 0:07:20]} 22. b4 {[%emt 0:04:16]} Nxc6 {[%emt 0:05:06]} 23.
dxc6 {[%emt 0:02:33]} Rxc6 {[%emt 0:02:32]} 24. Bxc6 {[%emt 0:00:18]} Qxc6+ {
[%emt 0:00:10]} 25. Qd5 {[%emt 0:00:16]} Qc8 {[%emt 0:04:09]} 26. Kh2 {[%emt 0:
00:00]} Qg4 {[%emt 0:01:14]} 27. f3 {[%emt 0:02:52]} Qh5 {[%emt 0:00:54]} 28.
cxb5 {[%emt 0:00:47]} axb5 {[%emt 0:00:21]} 29. Kg2 {[%emt 0:01:46]} Qg6 {
[%emt 0:00:56]} 30. Qe4 {[%emt 0:00:39]} Qh5 {[%emt 0:00:13]} 31. Rfd1 {
[%emt 0:00:31]} Be7 {[%emt 0:01:01]} 32. Rc7 {[%emt 0:01:27]} Bd8 {[%emt 0:00:
00]} 33. Rc8 {[%emt 0:01:49]} f5 {[%emt 0:01:53]} 34. Qd5+ {[%emt 0:10:44]} Kh7
{[%emt 0:00:38]} 35. Rf1 {[%emt 0:02:20]} Qg6 {[%emt 0:02:33]} 36. h5 {[%emt 0:
00:00]} Qxh5 {[%emt 0:02:55]} 37. Qxd6 {[%emt 0:00:40]} Be7 {[%emt 0:00:37]}
38. Qe6 {[%emt 0:00:46]} Rxc8 {[%emt 0:02:11]} 39. Qxc8 {[%emt 0:00:14]} Bxb4 {
[%emt 0:00:27]} 40. Qd7 {[%emt 0:03:50]} Qg5 {[%emt 0:03:47]} 41. f4 {[%emt 0:
00:00]} Qg6 {[%emt 0:04:53]} 42. fxe5 {[%emt 0:00:00]} f4 {[%emt 0:04:22]} 43.
Rxf4 {[%emt 0:00:00]} Qc2+ {[%emt 0:00:45]} 44. Rf2 {[%emt 0:00:00]} Qe4+ {
[%emt 0:02:07]} 45. Kh2 {[%emt 0:00:00]} Qe1 {[%emt 0:00:17]} 46. Qf5+ {
[%emt 0:00:00]} Kh8 {[%emt 0:01:47]} 47. Rc2 {[%emt 0:00:00]} Bc3 {[%emt 0:00:
00]} 48. Qc8+ {[%emt 0:00:00]} 1-0

[Event "44th Chess Olympiad Open 2022"]
[Site "Chennai"]
[Date "2022.08.06"]
[Round "8.50"]
[White "Lim, Zhuo Ren"]
[Black "Maung, Maung Kyaw Zaw Hein"]
[Result "1-0"]
[WhiteElo "2318"]
[BlackElo "2121"]
[Annotator "RC"]
[PlyCount "95"]
[EventDate "2022.??.??"]
[TimeControl "60"]

1. d4 {[%emt 0:00:05]} d5 {[%emt 0:00:12]} 2. Nf3 {[%emt 0:00:17]} Nf6 {
[%emt 0:00:05]} 3. c4 {[%emt 0:00:11]} c6 {[%emt 0:00:05]} 4. Nc3 {[%emt 0:00:
00]} dxc4 {[%emt 0:00:23]} 5. a4 {[%emt 0:00:21]} Bf5 {[%emt 0:00:06]} 6. Ne5 {
[%emt 0:01:19]} Nbd7 {[%emt 0:00:08]} 7. Nxc4 {[%emt 0:00:16]} Qc7 {[%emt 0:00:
00]} 8. g3 {[%emt 0:01:53]} e5 {[%emt 0:00:09]} 9. dxe5 {[%emt 0:00:14]} Nxe5 {
[%emt 0:00:04]} 10. Bf4 {[%emt 0:00:07]} Nfd7 {[%emt 0:00:20]} 11. Bg2 {
[%emt 0:00:30]} g5 {[%emt 0:00:29]} 12. Ne3 {[%emt 0:01:16]} gxf4 {[%emt 0:00:
00]} 13. Nxf5 {[%emt 0:00:05]} O-O-O {[%emt 0:02:09]} 14. Qc2 {[%emt 0:01:11]}
Kb8 {[%emt 0:13:31]} 15. gxf4 {[%emt 0:01:34]} Rg8 {[%emt 0:04:08]} 16. O-O {
[%emt 0:01:13]} Ng4 {[%emt 0:06:33]} 17. e3 {[%emt 0:01:08]} Rg6 {[%emt 0:00:
00]} 18. Kh1 {[%emt 0:02:08]} Bd6 {[%emt 0:03:47]} 19. Rad1 {[%emt 0:11:42]}
Bxf4 {[%emt 0:08:38]} 20. exf4 {[%emt 0:00:07]} Qxf4 {[%emt 0:00:07]} 21. Ng3 {
[%emt 0:00:20]} Qh6 {[%emt 0:06:26]} 22. h3 {[%emt 0:00:15]} Ne3 {[%emt 0:00:
00]} 23. fxe3 {[%emt 0:00:21]} Rxg3 {[%emt 0:00:34]} 24. Qf2 {[%emt 0:02:26]}
Rdg8 {[%emt 0:03:29]} 25. Rxd7 {[%emt 0:06:52]} Rxg2 {[%emt 0:01:27]} 26. Qxg2
{[%emt 0:06:35]} Rxg2 {[%emt 0:00:06]} 27. Kxg2 {[%emt 0:00:04]} f5 {[%emt 0:
00:00]} 28. Rf3 {[%emt 0:01:23]} Qe6 {[%emt 0:01:48]} 29. Rd2 {[%emt 0:00:38]}
a5 {[%emt 0:00:31]} 30. Kf2 {[%emt 0:01:13]} Qf6 {[%emt 0:04:51]} 31. Rf4 {
[%emt 0:00:20]} h5 {[%emt 0:03:37]} 32. h4 {[%emt 0:00:13]} b5 {[%emt 0:01:56]}
33. axb5 {[%emt 0:00:39]} cxb5 {[%emt 0:00:05]} 34. Nxb5 {[%emt 0:02:29]} Qc6 {
[%emt 0:00:17]} 35. Nd4 {[%emt 0:00:17]} Qd6 {[%emt 0:02:54]} 36. Rc2 {[%emt 0:
00:00]} a4 {[%emt 0:00:58]} 37. Nxf5 {[%emt 0:01:00]} Qd1 {[%emt 0:00:30]} 38.
Rb4+ {[%emt 0:01:07]} Ka8 {[%emt 0:01:42]} 39. Rxa4+ {[%emt 0:00:12]} Kb7 {
[%emt 0:01:35]} 40. Rb4+ {[%emt 0:00:17]} Ka6 {[%emt 0:00:27]} 41. Rbc4 {
[%emt 0:32:05]} Qh1 {[%emt 0:32:19]} 42. e4 {[%emt 0:01:32]} Qh2+ {[%emt 0:00:
00]} 43. Ke3 {[%emt 0:00:27]} Qg1+ {[%emt 0:00:06]} 44. Kf4 {[%emt 0:00:28]}
Qg4+ {[%emt 0:00:30]} 45. Ke5 {[%emt 0:00:11]} Qg8 {[%emt 0:00:20]} 46. Rc8 {
[%emt 0:00:39]} Qb3 {[%emt 0:01:13]} 47. R2c6+ {[%emt 0:01:06]} Kb7 {[%emt 0:
00:00]} 48. R6c7+ {[%emt 0:00:29]} 1-0

[Event "44th Chess Olympiad Open 2022"]
[Site "Chennai"]
[Date "2022.08.06"]
[Round "8.50"]
[White "Poh, Yu Tian"]
[Black "Nay Lin Tun"]
[Result "1-0"]
[WhiteElo "2118"]
[BlackElo "2045"]
[Annotator "NA RC"]
[PlyCount "71"]
[EventDate "2022.??.??"]
[TimeControl "60"]

1. e4 {[%emt 0:00:26]} c5 {[%emt 0:00:22]} 2. Nf3 {[%emt 0:00:00]} d6 {[%emt 0:
00:00]} 3. d4 {[%emt 0:00:00]} cxd4 {[%emt 0:00:06]} 4. Nxd4 {[%emt 0:00:00]}
Nf6 {[%emt 0:00:11]} 5. Nc3 {[%emt 0:00:00]} g6 {[%emt 0:01:16]} 6. Be3 {
[%emt 0:00:02]} Bg7 {[%emt 0:00:09]} 7. f3 {[%emt 0:00:03]} O-O {[%emt 0:00:22]
} 8. Qd2 {[%emt 0:00:05]} Nc6 {[%emt 0:00:29]} 9. O-O-O {[%emt 0:00:06]} d5 {
[%emt 0:00:15]} 10. exd5 {[%emt 0:00:05]} Nxd5 {[%emt 0:00:17]} 11. Nxc6 {
[%emt 0:00:06]} bxc6 {[%emt 0:00:10]} 12. Bd4 {[%emt 0:00:02]} e5 {[%emt 0:00:
00]} 13. Bc5 {[%emt 0:00:07]} Be6 {[%emt 0:06:54]} 14. Ne4 {[%emt 0:00:25]} Re8
{[%emt 0:18:52]} 15. h4 {[%emt 0:00:22]} h6 {[%emt 0:09:00]} 16. g4 {[%emt 0:
00:00]} Qc7 {[%emt 0:10:13]} 17. g5 {[%emt 0:00:43]} h5 {[%emt 0:00:39]} 18.
Bc4 {[%emt 0:00:09]} Red8 {[%emt 0:04:25]} 19. Qf2 {[%emt 0:00:19]} Qa5 {
[%emt 0:10:09]} 20. Qe1 {[%emt 0:26:26]} Qxe1 {[%emt 0:16:04]} 21. Rhxe1 {
[%emt 0:00:23]} Nf4 {[%emt 0:00:11]} 22. Bxe6 {[%emt 0:00:31]} Nxe6 {[%emt 0:
00:00]} 23. Bf2 {[%emt 0:02:12]} f5 {[%emt 0:13:02]} 24. gxf6 {[%emt 0:01:17]}
Bh6+ {[%emt 0:00:10]} 25. Kb1 {[%emt 0:02:36]} Kf7 {[%emt 0:00:41]} 26. Rxd8 {
[%emt 0:04:50]} Rxd8 {[%emt 0:00:29]} 27. Bxa7 {[%emt 0:00:55]} Bf4 {[%emt 0:
00:00]} 28. Bb6 {[%emt 0:01:26]} Rb8 {[%emt 0:01:33]} 29. Be3 {[%emt 0:00:40]}
Bxe3 {[%emt 0:00:37]} 30. Rxe3 {[%emt 0:00:12]} Nf4 {[%emt 0:00:08]} 31. Rc3 {
[%emt 0:01:00]} Rb6 {[%emt 0:00:55]} 32. Ra3 {[%emt 0:00:44]} Nd5 {[%emt 0:00:
00]} 33. Ra7+ {[%emt 0:00:07]} Ke6 {[%emt 0:00:27]} 34. Ng5+ {[%emt 0:00:12]}
Kf5 {[%emt 0:00:26]} 35. f7 {[%emt 0:00:08]} Rb8 {[%emt 0:00:27]} 36. Nh7 {
[%emt 0:00:04]} 1-0

[Event "44th Chess Olympiad Open 2022"]
[Site "Chennai"]
[Date "2022.08.06"]
[Round "8.50"]
[White "Sai Han Thiha"]
[Black "Tan, Jun Ying"]
[Result "1/2-1/2"]
[WhiteElo "1974"]
[BlackElo "2191"]
[Annotator "NA RC"]
[PlyCount "68"]
[EventDate "2022.??.??"]
[TimeControl "60"]

1. d4 {[%emt 0:00:04]} c5 {[%emt 0:00:08]} 2. d5 {[%emt 0:00:06]} f5 {[%emt 0:
00:00]} 3. g3 {[%emt 0:10:09]} Nf6 {[%emt 0:00:45]} 4. Bg2 {[%emt 0:00:09]} d6
{[%emt 0:01:53]} 5. Nf3 {[%emt 0:17:31]} g6 {[%emt 0:00:32]} 6. O-O {[%emt 0:
00:00]} Bg7 {[%emt 0:00:05]} 7. c4 {[%emt 0:00:10]} O-O {[%emt 0:00:13]} 8. Nc3
{[%emt 0:00:06]} h6 {[%emt 0:06:11]} 9. Rb1 {[%emt 0:05:22]} Na6 {[%emt 0:00:
00]} 10. b3 {[%emt 0:01:23]} g5 {[%emt 0:05:33]} 11. e3 {[%emt 0:05:14]} Qe8 {
[%emt 0:02:36]} 12. Bb2 {[%emt 0:01:57]} Qg6 {[%emt 0:00:51]} 13. a3 {[%emt 0:
00:00]} Bd7 {[%emt 0:11:21]} 14. Qc2 {[%emt 0:00:58]} Rae8 {[%emt 0:08:09]} 15.
Ne2 {[%emt 0:05:36]} b5 {[%emt 0:06:30]} 16. Qd3 {[%emt 0:08:57]} Rb8 {[%emt 0:
00:00]} 17. Ba1 {[%emt 0:05:17]} Kh7 {[%emt 0:04:03]} 18. Nd2 {[%emt 0:01:10]}
Rb7 {[%emt 0:08:01]} 19. f4 {[%emt 0:02:23]} g4 {[%emt 0:04:51]} 20. Rfe1 {
[%emt 0:06:51]} Rfb8 {[%emt 0:01:21]} 21. Qc2 {[%emt 0:01:27]} Nc7 {[%emt 0:00:
00]} 22. Nc3 {[%emt 0:01:07]} Kh8 {[%emt 0:02:04]} 23. Bf1 {[%emt 0:03:06]} a5
{[%emt 0:02:45]} 24. Bd3 {[%emt 0:02:55]} b4 {[%emt 0:02:35]} 25. axb4 {
[%emt 0:00:05]} Na6 {[%emt 0:01:11]} 26. Na2 {[%emt 0:01:49]} cxb4 {[%emt 0:00:
00]} 27. e4 {[%emt 0:00:10]} fxe4 {[%emt 0:05:32]} 28. Nxe4 {[%emt 0:00:02]}
Nxe4 {[%emt 0:00:55]} 29. Bxe4 {[%emt 0:00:31]} Qf7 {[%emt 0:00:46]} 30. Bg6 {
[%emt 0:00:23]} Qf8 {[%emt 0:00:25]} 31. Nc1 {[%emt 0:05:04]} Nc5 {[%emt 0:00:
00]} 32. Nd3 {[%emt 0:01:07]} Rc8 {[%emt 0:03:08]} 33. Nxc5 {[%emt 0:03:47]}
Rxc5 {[%emt 0:00:07]} 34. Qe4 {[%emt 0:00:05]} Bc8 {[%emt 0:05:30]} 1/2-1/2

[Event "44th Chess Olympiad Open 2022"]
[Site "Chennai"]
[Date "2022.08.06"]
[Round "8.50"]
[White "Zaw Ye Htut"]
[Black "Subramaniam, Sumant"]
[Result "0-1"]
[WhiteElo "1255"]
[BlackElo "2152"]
[Annotator "RC"]
[PlyCount "142"]
[EventDate "2022.??.??"]
[TimeControl "60"]

1. e4 {[%emt 0:00:04]} d5 {[%emt 0:00:10]} 2. exd5 {[%emt 0:00:17]} Qxd5 {
[%emt 0:00:05]} 3. d4 {[%emt 0:01:27]} Nc6 {[%emt 0:00:06]} 4. Nf3 {[%emt 0:00:
00]} Bg4 {[%emt 0:00:05]} 5. Be3 {[%emt 0:00:14]} e5 {[%emt 0:01:52]} 6. c4 {
[%emt 0:07:18]} Bb4+ {[%emt 0:01:46]} 7. Nc3 {[%emt 0:01:50]} Qa5 {[%emt 0:00:
00]} 8. d5 {[%emt 0:00:22]} O-O-O {[%emt 0:01:42]} 9. Be2 {[%emt 0:01:12]} e4 {
[%emt 0:01:28]} 10. Nd2 {[%emt 0:01:53]} Bxe2 {[%emt 0:00:14]} 11. Qxe2 {
[%emt 0:00:22]} Bxc3 {[%emt 0:00:51]} 12. bxc3 {[%emt 0:02:31]} Qxc3 {[%emt 0:
00:00]} 13. O-O {[%emt 0:00:29]} Ne5 {[%emt 0:00:40]} 14. Rfc1 {[%emt 0:02:09]}
Qd3 {[%emt 0:01:22]} 15. Qh5 {[%emt 0:00:34]} Re8 {[%emt 0:00:36]} 16. Rab1 {
[%emt 0:03:19]} Nf6 {[%emt 0:01:42]} 17. Qd1 {[%emt 0:16:24]} Qa3 {[%emt 0:00:
00]} 18. Rb3 {[%emt 0:01:18]} Qa4 {[%emt 0:00:25]} 19. Rcb1 {[%emt 0:02:07]} b6
{[%emt 0:13:47]} 20. Qc2 {[%emt 0:02:22]} Neg4 {[%emt 0:06:01]} 21. Bd4 {
[%emt 0:03:31]} Nxd5 {[%emt 0:13:24]} 22. Nxe4 {[%emt 0:03:19]} Nb4 {[%emt 0:
00:00]} 23. Qe2 {[%emt 0:09:38]} f5 {[%emt 0:01:57]} 24. Rxb4 {[%emt 0:02:03]}
Qd7 {[%emt 0:00:11]} 25. c5 {[%emt 0:04:04]} Rxe4 {[%emt 0:05:58]} 26. Qc4 {
[%emt 0:07:16]} Rhe8 {[%emt 0:02:02]} 27. Rf1 {[%emt 0:06:40]} Qc6 {[%emt 0:00:
00]} 28. cxb6 {[%emt 0:01:30]} Qxc4 {[%emt 0:00:14]} 29. Rxc4 {[%emt 0:01:01]}
axb6 {[%emt 0:00:11]} 30. f3 {[%emt 0:00:27]} Ne3 {[%emt 0:01:05]} 31. fxe4 {
[%emt 0:00:11]} Nxc4 {[%emt 0:00:05]} 32. exf5 {[%emt 0:00:11]} Re7 {[%emt 0:
00:00]} 33. Rf4 {[%emt 0:01:09]} Nd6 {[%emt 0:00:54]} 34. g4 {[%emt 0:00:40]}
c5 {[%emt 0:00:05]} 35. Bb2 {[%emt 0:03:04]} Ne4 {[%emt 0:00:29]} 36. Bxg7 {
[%emt 0:00:59]} Ng5 {[%emt 0:00:05]} 37. Bf8 {[%emt 0:03:43]} Ra7 {[%emt 0:00:
00]} 38. Rc4 {[%emt 0:02:44]} Rxa2 {[%emt 0:02:59]} 39. Bd6 {[%emt 0:01:13]}
Kd7 {[%emt 0:00:17]} 40. Bb8 {[%emt 0:00:40]} Kc6 {[%emt 0:00:58]} 41. Kh1 {
[%emt 0:32:54]} b5 {[%emt 0:30:23]} 42. Rc1 {[%emt 0:01:33]} b4 {[%emt 0:00:15]
} 43. Rb1 {[%emt 0:02:14]} Ne4 {[%emt 0:00:37]} 44. h3 {[%emt 0:01:35]} Nf2+ {
[%emt 0:00:37]} 45. Kg2 {[%emt 0:00:22]} Nxg4+ {[%emt 0:01:54]} 46. Kf3 {
[%emt 0:00:45]} Nh6 {[%emt 0:00:05]} 47. f6 {[%emt 0:01:20]} Ra6 {[%emt 0:00:
00]} 48. Rd1 {[%emt 0:01:23]} Nf7 {[%emt 0:01:00]} 49. Ke4 {[%emt 0:01:30]} Ra8
{[%emt 0:01:03]} 50. Bf4 {[%emt 0:00:42]} b3 {[%emt 0:00:29]} 51. Kf5 {[%emt 0:
00:00]} Re8 {[%emt 0:00:00]} 52. Bc1 {[%emt 0:00:00]} c4 {[%emt 0:00:00]} 53.
Bb2 {[%emt 0:00:00]} Re2 {[%emt 0:00:00]} 54. Bd4 {[%emt 0:00:00]} Nd6+ {
[%emt 0:00:00]} 55. Kg5 {[%emt 0:00:00]} b2 {[%emt 0:00:00]} 56. Rb1 {[%emt 0:
00:00]} c3 {[%emt 0:00:00]} 57. Rf1 {[%emt 0:00:00]} Rf2 {[%emt 0:00:00]} 58.
Re1 {[%emt 0:00:00]} Ne4+ {[%emt 0:00:00]} 59. Kh6 {[%emt 0:00:00]} Rxf6+ {
[%emt 0:00:00]} 60. Kxh7 {[%emt 0:00:00]} Rf3 {[%emt 0:00:00]} 61. h4 {[%emt 0:
00:00]} Nd2 {[%emt 0:00:00]} 62. h5 {[%emt 0:00:00]} Rf1 {[%emt 0:00:00]} 63.
Bxc3 {[%emt 0:00:00]} Rxe1 {[%emt 0:00:00]} 64. Bxb2 {[%emt 0:00:00]} Rg1 {
[%emt 0:00:00]} 65. h6 {[%emt 0:00:00]} Kd7 {[%emt 0:00:00]} 66. Bg7 {[%emt 0:
00:00]} Ke8 {[%emt 0:00:00]} 67. Kg8 {[%emt 0:00:00]} Ne4 {[%emt 0:00:00]} 68.
h7 {[%emt 0:00:00]} Nf6+ {[%emt 0:00:00]} 69. Kh8 {[%emt 0:00:00]} Nxh7 {
[%emt 0:00:00]} 70. Kxh7 {[%emt 0:00:00]} Kf7 {[%emt 0:00:00]} 71. Kh8 {
[%emt 0:00:00]} Rh1+ {[%emt 0:00:00]} 0-1

[Event "44th Chess Olympiad Open 2022"]
[Site "Chennai"]
[Date "2022.08.06"]
[Round "8.51"]
[White "Arias, Lemnys A."]
[Black "Sabure, Bojosi"]
[Result "1-0"]
[WhiteElo "2258"]
[BlackElo "1966"]
[Annotator "NA RC"]
[PlyCount "91"]
[EventDate "2022.??.??"]
[TimeControl "60"]

1. e4 {[%emt 0:00:55]} g6 {[%emt 0:00:21]} 2. d4 {[%emt 0:00:06]} Bg7 {[%emt 0:
00:00]} 3. c3 {[%emt 0:00:05]} d6 {[%emt 0:00:21]} 4. Nf3 {[%emt 0:00:09]} Nd7
{[%emt 0:00:45]} 5. Bc4 {[%emt 0:00:13]} e6 {[%emt 0:00:15]} 6. O-O {[%emt 0:
00:00]} a6 {[%emt 0:00:42]} 7. a4 {[%emt 0:01:12]} b6 {[%emt 0:02:23]} 8. Bg5 {
[%emt 0:03:30]} Ne7 {[%emt 0:00:13]} 9. Nbd2 {[%emt 0:01:13]} h6 {[%emt 0:00:
00]} 10. Be3 {[%emt 0:00:41]} Bb7 {[%emt 0:00:18]} 11. Ba2 {[%emt 0:01:59]} Nf6
{[%emt 0:01:57]} 12. Qc2 {[%emt 0:01:13]} Qd7 {[%emt 0:00:45]} 13. h3 {[%emt 0:
00:00]} g5 {[%emt 0:01:09]} 14. Nh2 {[%emt 0:01:13]} Ng6 {[%emt 0:00:47]} 15.
f4 {[%emt 0:00:44]} gxf4 {[%emt 0:01:52]} 16. Bxf4 {[%emt 0:00:12]} O-O-O {
[%emt 0:04:23]} 17. Be3 {[%emt 0:01:06]} Rhg8 {[%emt 0:00:35]} 18. Rf2 {
[%emt 0:00:17]} Rdf8 {[%emt 0:00:52]} 19. c4 {[%emt 0:01:48]} c5 {[%emt 0:00:
00]} 20. d5 {[%emt 0:00:53]} a5 {[%emt 0:05:02]} 21. Raf1 {[%emt 0:05:29]} e5 {
[%emt 0:03:56]} 22. Qd1 {[%emt 0:03:46]} Qe7 {[%emt 0:00:52]} 23. Bb1 {[%emt 0:
00:00]} Kc7 {[%emt 0:01:25]} 24. Ng4 {[%emt 0:03:24]} Nxg4 {[%emt 0:00:48]} 25.
Qxg4 {[%emt 0:00:06]} Bc8 {[%emt 0:00:18]} 26. Qh5 {[%emt 0:00:07]} Nf4 {
[%emt 0:01:50]} 27. Bxf4 {[%emt 0:00:28]} exf4 {[%emt 0:00:08]} 28. Rxf4 {
[%emt 0:00:09]} Bd4+ {[%emt 0:00:23]} 29. Kh1 {[%emt 0:00:09]} Bd7 {[%emt 0:00:
00]} 30. Rxf7 {[%emt 0:00:22]} Rxf7 {[%emt 0:00:18]} 31. Rxf7 {[%emt 0:00:27]}
Qg5 {[%emt 0:01:18]} 32. Qxg5 {[%emt 0:00:11]} hxg5 {[%emt 0:00:06]} 33. e5 {
[%emt 0:00:41]} Bxe5 {[%emt 0:00:20]} 34. Bf5 {[%emt 0:00:07]} Rg7 {[%emt 0:00:
00]} 35. Rxg7 {[%emt 0:00:17]} Bxg7 {[%emt 0:00:19]} 36. Bxd7 {[%emt 0:00:06]}
Kxd7 {[%emt 0:00:20]} 37. b3 {[%emt 0:00:07]} Ke7 {[%emt 0:00:38]} 38. Ne4 {
[%emt 0:03:09]} g4 {[%emt 0:00:32]} 39. hxg4 {[%emt 0:00:08]} Be5 {[%emt 0:00:
00]} 40. g3 {[%emt 0:00:10]} Kf7 {[%emt 0:00:18]} 41. Kg2 {[%emt 0:30:59]} Kg6
{[%emt 0:30:27]} 42. Kh2 {[%emt 0:01:04]} Kh6 {[%emt 0:03:46]} 43. Kh3 {
[%emt 0:00:07]} Kg6 {[%emt 0:00:17]} 44. Kh4 {[%emt 0:00:06]} Kh6 {[%emt 0:00:
00]} 45. g5+ {[%emt 0:00:11]} Kg6 {[%emt 0:00:19]} 46. Kg4 {[%emt 0:00:07]} 1-0

[Event "44th Chess Olympiad Open 2022"]
[Site "Chennai"]
[Date "2022.08.06"]
[Round "8.51"]
[White "Oatlhotse, Providence"]
[Black "Giron, Jorge Ernesto"]
[Result "0-1"]
[WhiteElo "2204"]
[BlackElo "2288"]
[Annotator "NA RC"]
[PlyCount "58"]
[EventDate "2022.??.??"]
[TimeControl "60"]

1. Nf3 {[%emt 0:00:04]} Nf6 {[%emt 0:00:32]} 2. g3 {[%emt 0:00:59]} c5 {
[%emt 0:00:26]} 3. Bg2 {[%emt 0:00:08]} Nc6 {[%emt 0:00:08]} 4. O-O {[%emt 0:
00:00]} g6 {[%emt 0:04:50]} 5. Re1 {[%emt 0:00:41]} Bg7 {[%emt 0:01:26]} 6. e4
{[%emt 0:00:05]} e5 {[%emt 0:00:09]} 7. a3 {[%emt 0:00:43]} a5 {[%emt 0:00:24]}
8. a4 {[%emt 0:00:14]} O-O {[%emt 0:00:09]} 9. Na3 {[%emt 0:00:24]} d6 {
[%emt 0:01:15]} 10. d3 {[%emt 0:00:31]} h6 {[%emt 0:00:05]} 11. Nd2 {[%emt 0:
00:00]} Bg4 {[%emt 0:01:06]} 12. f3 {[%emt 0:01:04]} Be6 {[%emt 0:00:04]} 13.
Ndc4 {[%emt 0:00:30]} d5 {[%emt 0:02:56]} 14. Ne3 {[%emt 0:04:00]} Rc8 {
[%emt 0:10:28]} 15. Bd2 {[%emt 0:00:25]} Kh7 {[%emt 0:00:38]} 16. c4 {[%emt 0:
00:00]} dxe4 {[%emt 0:05:03]} 17. dxe4 {[%emt 0:00:22]} Nd4 {[%emt 0:01:39]}
18. Rb1 {[%emt 0:13:34]} Ne8 {[%emt 0:06:14]} 19. b3 {[%emt 0:02:57]} f5 {
[%emt 0:12:04]} 20. Nd5 {[%emt 0:01:22]} f4 {[%emt 0:24:34]} 21. gxf4 {[%emt 0:
00:00]} exf4 {[%emt 0:00:36]} 22. Nxf4 {[%emt 0:13:17]} Be5 {[%emt 0:00:09]}
23. Nd5 {[%emt 0:01:50]} Qh4 {[%emt 0:00:49]} 24. f4 {[%emt 0:00:24]} Bg4 {
[%emt 0:00:13]} 25. Qc1 {[%emt 0:03:18]} Nf3+ {[%emt 0:04:14]} 26. Bxf3 {
[%emt 0:02:01]} Bxf3 {[%emt 0:00:04]} 27. fxe5 {[%emt 0:00:55]} Qg4+ {[%emt 0:
00:00]} 28. Kf2 {[%emt 0:00:08]} Bh1+ {[%emt 0:00:04]} 29. Nf4 {[%emt 0:02:25]}
Qg2+ {[%emt 0:01:42]} 0-1